bitfinex-derivatives/quotes_BTCF0:USTF0_20240830
["timestamp","ask_amount","ask_price","bid_price","bid_amount"]
[1725023948874,0.15878724,59620.0,59619.0,0.445653]
[1725023949067,0.24263824,59620.0,59619.0,0.3618]
[1725023949370,0.24263824,59620.0,59619.0,0.445653]
[1725023950471,0.24263824,59620.0,59619.0,0.3618]
[1725023950772,0.04,59620.0,59619.0,0.3618]
[1725023950967,0.123851,59620.0,59619.0,0.3618]
[1725023951970,0.627051,59620.0,59619.0,0.3618]
[1725023952171,0.123851,59620.0,59619.0,0.3618]
[1725023952368,0.627051,59620.0,59619.0,0.3618]
[1725023952775,0.123851,59620.0,59619.0,0.3618]
[1725023953674,0.04,59620.0,59619.0,0.2464342]
[1725023953974,0.04,59620.0,59619.0,0.293366]
[1725023954173,0.123851,59620.0,59619.0,0.293366]
[1725023955475,0.04,59620.0,59619.0,0.293366]
[1725023956571,0.04,59620.0,59619.0,0.751072]
[1725023958776,0.04,59620.0,59619.0,0.753072]
[1725023959677,0.04,59620.0,59619.0,1.266159]
[1725023961279,0.04,59620.0,59619.0,1.272159]
[1725023970783,0.04,59620.0,59619.0,1.35592929]
[1725023971686,0.04,59620.0,59619.0,1.272159]
[1725023972491,0.04,59620.0,59619.0,1.35592929]
[1725023972689,0.04,59620.0,59619.0,1.48369126]
[1725023973785,0.04,59620.0,59619.0,1.48369088]
[1725023974381,0.04,59620.0,59619.0,1.35592929]
[1725023974781,0.16,59626.0,59625.0,0.167688]
[1725023975082,0.243835,59632.0,59631.0,0.083836]
[1725023975286,0.1,59632.0,59631.0,0.083836]
[1725023975590,0.1,59632.0,59631.0,0.13398362]
[1725023976286,0.1,59632.0,59631.0,0.13398343]
[1725023976589,0.1,59632.0,59631.0,0.13498343]
[1725023977593,0.102,59632.0,59631.0,0.13598343]
[1725023977788,0.102,59632.0,59631.0,0.085836]
[1725023979097,0.185835,59632.0,59631.0,0.085836]
[1725023979399,0.185835,59632.0,59631.0,0.002]
[1725023979400,0.26967,59632.0,59631.0,0.002]
[1725023979790,0.26967,59632.0,59631.0,0.085836]
[1725023981497,0.102,59632.0,59631.0,0.085836]
[1725023982794,0.102,59632.0,59631.0,0.169672]
[1725023983182,0.102,59632.0,59631.0,0.530472]
[1725023983390,0.102,59632.0,59631.0,0.603072]
[1725023987590,0.185835,59632.0,59631.0,0.446636]
[1725023989097,0.185835,59632.0,59631.0,0.085836]
[1725023990093,0.102,59632.0,59631.0,0.085836]
[1725023990700,0.102,59632.0,59631.0,0.169672]
[1725023990903,0.102,59632.0,59631.0,0.241972]
[1725023999605,0.102,59632.0,59631.0,0.325808]
[1725023999997,0.102,59632.0,59631.0,0.241972]
[1725024000197,0.102,59632.0,59631.0,0.325808]
[1725024000401,0.102,59632.0,59631.0,0.241972]
[1725024000908,0.102,59632.0,59631.0,0.29211943]
[1725024001799,0.102,59632.0,59631.0,0.241972]
[1725024002707,0.102,59632.0,59631.0,0.37595543]
[1725024002906,0.102,59632.0,59631.0,0.29211943]
[1725024003208,0.102,59632.0,59631.0,0.325808]
[1725024005407,0.102,59632.0,59631.0,0.241972]
[1725024005610,0.102,59632.0,59631.0,0.43912758]
[1725024005904,0.102,59632.0,59631.0,0.389012]
[1725024006099,0.102,59632.0,59631.0,0.43912758]
[1725024006913,0.102,59632.0,59631.0,0.472848]
[1725024007102,0.102,59632.0,59631.0,0.389012]
[1725024007305,0.102,59632.0,59631.0,0.472848]
[1725024007900,0.09881788,59638.0,59637.0,0.083827]
[1725024008101,0.13,59638.0,59637.0,0.734627]
[1725024009409,0.13,59638.0,59637.0,0.736627]
[1725024009410,0.132,59638.0,59637.0,0.736627]
[1725024009611,0.132,59638.0,59637.0,0.904281]
[1725024010909,0.132,59638.0,59637.0,0.903281]
[1725024011109,0.132,59638.0,59637.0,0.904281]
[1725024011320,0.132,59638.0,59637.0,0.614281]
[1725024011521,0.132,59638.0,59637.0,0.761321]
[1725024012610,0.132,59638.0,59637.0,0.677494]
[1725024012810,0.13,59638.0,59637.0,0.677494]
[1725024013006,0.13,59638.0,59637.0,0.530454]
[1725024013217,0.13,59638.0,59637.0,0.677494]
[1725024015518,0.13,59638.0,59637.0,0.70720385]
[1725024016219,0.13,59638.0,59637.0,0.99720385]
[1725024016820,0.13,59638.0,59637.0,0.085827]
[1725024017007,0.213826,59638.0,59637.0,0.085827]
[1725024017925,0.297652,59638.0,59637.0,0.085827]
[1725024020219,0.32790428,59638.0,59637.0,0.085827]
[1725024020535,0.32790428,59638.0,59637.0,0.002]
[1725024021216,0.24407828,59638.0,59637.0,0.085827]
[1725024026519,0.32790428,59638.0,59637.0,0.002]
[1725024026721,0.083842,59627.0,59626.0,0.00025153]
[1725024027027,0.213842,59627.0,59626.0,0.00025153]
[1725024027226,0.213842,59627.0,59626.0,0.08409453]
[1725024028325,0.214842,59627.0,59626.0,0.08409453]
[1725024028721,0.214842,59627.0,59626.0,0.00025153]
[1725024029725,0.298684,59627.0,59626.0,0.00025153]
[1725024031129,0.214842,59627.0,59626.0,0.00025153]
[1725024032024,0.69007039,59627.0,59626.0,0.00025153]
[1725024032227,2.16703239,59627.0,59626.0,5.3e-07]
[1725024032415,2.18819511,59627.0,59626.0,5.3e-07]
[1725024035622,2.17560914,59627.0,59626.0,5.3e-07]
[1725024037127,1.81480914,59627.0,59626.0,5.3e-07]
[1725024037437,2.53640914,59627.0,59626.0,5.3e-07]
[1725024037736,2.44399039,59627.0,59626.0,5.3e-07]
[1725024038836,2.52783239,59627.0,59626.0,5.3e-07]
[1725024039039,2.44399039,59627.0,59626.0,5.3e-07]
[1725024039224,2.5362841,59627.0,59626.0,5.3e-07]
[1725024041430,2.5362841,59627.0,59608.0,0.3608]
[1725024041431,0.083865,59610.0,59608.0,0.3608]
[1725024041737,0.083867,59609.0,59608.0,0.3608]
[1725024041939,0.12,59609.0,59608.0,0.444668]
[1725024042832,0.12,59609.0,59608.0,0.458668]
[1725024043831,0.12,59609.0,59608.0,0.472668]
[1725024044538,0.12,59609.0,59608.0,0.111868]
[1725024047932,0.12,59609.0,59608.0,0.195736]
[1725024050234,0.12,59609.0,59608.0,0.279604]
[1725024050434,0.12,59609.0,59608.0,0.195736]
[1725024051543,0.12,59609.0,59608.0,0.111868]
[1725024051850,0.203867,59609.0,59608.0,0.111868]
[1725024053633,0.203867,59609.0,59608.0,0.16187016]
[1725024054039,0.203867,59609.0,59608.0,0.111868]
[1725024054840,0.12,59609.0,59608.0,0.16187016]
[1725024055147,0.12,59609.0,59608.0,0.16190017]
[1725024055346,0.12,59609.0,59608.0,0.111868]
[1725024055933,0.12,59609.0,59608.0,0.16191914]
[1725024056437,0.12,59609.0,59608.0,0.111868]
[1725024059049,0.12,59609.0,59608.0,0.17853754]
[1725024059448,0.12,59609.0,59608.0,0.53933754]
[1725024060343,0.12,59609.0,59608.0,0.62320554]
[1725024061457,0.12,59609.0,59608.0,0.556536]
[1725024063350,0.12,59609.0,59608.0,0.640404]
[1725024069045,0.12,59609.0,59608.0,0.279604]
[1725024069251,0.12,59609.0,59608.0,0.640404]
[1725024070242,0.12,59609.0,59608.0,0.556536]
[1725024070453,0.12,59609.0,59608.0,0.472668]
[1725024070847,0.12,59609.0,59608.0,0.53957405]
[1725024071957,0.203867,59609.0,59608.0,0.53957405]
[1725024073950,0.203867,59609.0,59608.0,0.472668]
[1725024074955,0.07823301,59609.0,59608.0,0.028]
[1725024075153,0.19210001,59609.0,59608.0,0.028]
[1725024079057,0.10823301,59609.0,59608.0,0.028]
[1725024079752,0.19210001,59609.0,59608.0,0.111868]
[1725024079954,0.19210001,59609.0,59608.0,0.028]
[1725024080164,0.10823301,59609.0,59608.0,0.028]
[1725024080566,0.19210001,59609.0,59608.0,0.028]
[1725024081251,0.10823301,59609.0,59608.0,0.028]
[1725024081856,0.19210001,59609.0,59608.0,0.028]
[1725024082251,0.08387,59607.0,59606.0,0.083871]
[1725024082458,0.48387,59607.0,59606.0,0.083871]
[1725024084064,0.31387,59607.0,59606.0,0.083871]
[1725024084658,0.50332,59604.0,59600.0,0.05021169]
[1725024084862,0.167768,59597.0,59596.0,0.05021169]
[1725024085058,0.397768,59597.0,59596.0,0.05021169]
[1725024085260,0.397768,59597.0,59590.0,0.05021169]
[1725024085261,0.083892,59591.0,59590.0,0.05021169]
[1725024085467,0.083894,59590.0,59589.0,0.13410669]
[1725024085774,0.313894,59590.0,59589.0,0.083895]
[1725024085970,0.472894,59590.0,59589.0,0.083895]
[1725024086175,0.11,59590.0,59589.0,0.083895]
[1725024086469,0.11,59590.0,59589.0,0.16779]
[1725024086671,0.11,59590.0,59589.0,0.17679]
[1725024086967,0.11,59590.0,59589.0,0.18379]
[1725024087870,0.11,59590.0,59589.0,0.2339489]
[1725024088167,0.11,59590.0,59589.0,0.18379]
[1725024088372,0.11,59590.0,59589.0,0.17679]
[1725024088672,0.11,59590.0,59589.0,0.18179]
[1725024088871,0.401,59590.0,59589.0,0.14504998]
[1725024089067,0.401,59590.0,59589.0,0.094895]
[1725024089964,0.484894,59590.0,59589.0,0.094895]
[1725024092971,0.929588,59590.0,59589.0,0.011]
[1725024093287,0.845694,59590.0,59589.0,0.094895]
[1725024094183,0.4718,59590.0,59589.0,0.17879]
[1725024094476,0.111,59590.0,59589.0,0.17879]
[1725024095894,0.111,59590.0,59589.0,0.53959]
[1725024096193,0.111,59590.0,59589.0,0.65372707]
[1725024099082,0.111,59590.0,59589.0,1.15716707]
[1725024099388,0.083875,59603.0,59601.0,0.083878]
[1725024099592,0.4908,59602.0,59601.0,0.083878]
[1725024099790,0.52124952,59602.0,59601.0,0.083878]
[1725024100186,0.4908,59602.0,59601.0,0.083878]
[1725024100380,0.4908,59602.0,59601.0,0.167756]
[1725024100594,0.13,59602.0,59601.0,0.167756]
[1725024101397,0.137,59602.0,59601.0,0.168756]
[1725024102095,0.137,59602.0,59601.0,0.169756]
[1725024102297,0.142,59602.0,59601.0,0.28312252]
[1725024102502,0.135,59602.0,59601.0,0.78548252]
[1725024102688,0.139,59602.0,59601.0,0.78548252]
[1725024102995,0.139,59602.0,59601.0,0.78448252]
[1725024105493,0.00153117,59602.0,59601.0,0.86836052]
[1725024105688,0.00153117,59602.0,59601.0,0.28112252]
[1725024105992,0.01153117,59602.0,59601.0,0.28112252]
[1725024107897,0.01153117,59602.0,59601.0,0.19724452]
[1725024112307,0.17928517,59602.0,59601.0,0.083878]
[1725024112604,0.09540817,59602.0,59601.0,0.083878]
[1725024114804,0.08388,59600.0,59599.0,0.083881]
[1725024115008,0.21388,59600.0,59599.0,0.083881]
[1725024116098,0.21588,59600.0,59599.0,0.083881]
[1725024116300,0.21688,59600.0,59599.0,0.083881]
[1725024116995,0.083884,59597.0,59596.0,0.083883]
[1725024117200,0.193884,59597.0,59596.0,0.083883]
[1725024118404,0.193884,59597.0,59596.0,0.085883]
[1725024118792,0.193884,59597.0,59596.0,0.086883]
[1725024119797,0.193884,59597.0,59582.0,0.29]
[1725024119798,1.61785008,59597.0,59582.0,0.083904]
[1725024120000,0.083895,59590.0,59589.0,0.083893]
[1725024120302,0.193895,59590.0,59589.0,0.083893]
[1725024123096,0.193895,59590.0,59589.0,0.091893]
[1725024123499,0.11,59590.0,59589.0,0.175788]
[1725024123704,0.11,59590.0,59589.0,0.536588]
[1725024123906,0.11,59590.0,59589.0,0.620483]
[1725024124204,0.11,59590.0,59589.0,0.692183]
[1725024124798,0.023036,59590.0,59589.0,1.279518]
[1725024124999,0.16,59596.0,59589.0,1.279518]
[1725024125000,0.001,59597.0,59596.0,0.16777]
[1725024125194,0.001,59597.0,59596.0,0.57874211]
[1725024125195,0.071,59597.0,59596.0,0.57874211]
[1725024125404,0.071,59597.0,59596.0,0.72034211]
[1725024126311,0.07,59597.0,59596.0,0.72134211]
[1725024126912,0.07,59597.0,59596.0,0.755055]
[1725024127107,0.07,59597.0,59596.0,0.757055]
[1725024127707,0.07,59597.0,59596.0,1.860455]
[1725024127913,0.00025007,59607.0,59606.0,0.167742]
[1725024128107,0.11025007,59607.0,59606.0,0.528542]
[1725024128799,0.11025007,59607.0,59606.0,0.444671]
[1725024129715,0.11025007,59607.0,59606.0,0.47555409]
[1725024129911,0.11225007,59607.0,59606.0,0.47655409]
[1725024130410,0.11225007,59607.0,59606.0,0.445671]
[1725024130620,0.11225007,59607.0,59606.0,0.446671]
[1725024130621,0.11925007,59607.0,59606.0,0.446671]
[1725024132711,0.20312007,59607.0,59606.0,0.446671]
[1725024133214,0.11925007,59607.0,59606.0,0.446671]
[1725024134708,0.11925007,59607.0,59606.0,0.085871]
[1725024135007,0.64779007,59607.0,59606.0,0.002]
[1725024136007,0.64779007,59607.0,59606.0,0.085871]
[1725024136008,0.56392007,59607.0,59606.0,0.085871]
[1725024136205,0.11925007,59607.0,59606.0,0.085871]
[1725024137019,0.11925007,59607.0,59606.0,0.543613]
[1725024138614,0.11925007,59607.0,59606.0,0.28372009]
[1725024141412,0.11925007,59607.0,59606.0,0.11597809]
[1725024142317,0.11925007,59607.0,59606.0,0.19984909]
[1725024146920,0.11925007,59607.0,59606.0,0.32744909]
[1725024148910,0.11925007,59607.0,59606.0,0.33590799]
[1725024149116,0.11925007,59607.0,59606.0,0.41977899]
[1725024150016,0.00925007,59607.0,59606.0,0.41977899]
[1725024151719,0.00925007,59607.0,59606.0,0.32744909]
[1725024151924,0.03925007,59607.0,59606.0,0.32744909]
[1725024155327,0.03925007,59607.0,59606.0,0.26644909]
[1725024159020,0.03925007,59607.0,59606.0,0.67744541]
[1725024159224,0.03925007,59607.0,59606.0,0.54337809]
[1725024159826,0.03925007,59607.0,59606.0,0.59357441]
[1725024160022,0.12312007,59607.0,59606.0,0.49686732]
[1725024160331,0.12312007,59607.0,59606.0,0.446671]
[1725024160729,0.20699007,59607.0,59606.0,0.3628]
[1725024162128,0.20699007,59607.0,59606.0,0.002]
[1725024164128,0.56779007,59607.0,59606.0,0.002]
[1725024167124,0.65166007,59607.0,59606.0,0.002]
[1725024170237,0.77166007,59607.0,59606.0,0.002]
[1725024175244,0.78425033,59607.0,59606.0,0.002]
[1725024176041,0.251631,59602.0,59601.0,0.00025153]
[1725024176250,0.852431,59602.0,59601.0,0.00025153]
[1725024176743,0.648554,59602.0,59601.0,0.00025153]
[1725024176936,0.768554,59602.0,59601.0,0.00025153]
[1725024177449,0.567677,59602.0,59601.0,0.08412953]
[1725024177645,0.567677,59602.0,59601.0,0.21332953]
[1725024177838,0.570677,59602.0,59601.0,0.21332953]
[1725024179948,0.690677,59602.0,59601.0,0.21332953]
[1725024181446,0.246,59602.0,59601.0,0.21332953]
[1725024181643,0.126,59602.0,59601.0,0.33332953]
[1725024182048,0.126,59602.0,59601.0,0.41720753]
[1725024182437,0.126,59602.0,59601.0,0.33332953]
[1725024183144,0.126,59602.0,59601.0,0.21332953]
[1725024183459,0.17954292,59604.0,59603.0,0.083875]
[1725024183753,0.23954292,59604.0,59603.0,0.083875]
[1725024184641,0.24254292,59604.0,59603.0,0.084875]
[1725024186544,0.12754292,59604.0,59603.0,0.084875]
[1725024193254,0.068,59604.0,59603.0,0.084875]
[1725024193554,0.068,59604.0,59603.0,0.16875]
[1725024194146,0.068,59604.0,59603.0,0.084875]
[1725024196056,0.068,59604.0,59603.0,0.16875]
[1725024197048,0.068,59604.0,59603.0,0.084875]
[1725024197664,0.068,59604.0,59603.0,0.16875]
[1725024197860,0.068,59604.0,59603.0,0.084875]
[1725024199950,0.151874,59604.0,59603.0,0.084875]
[1725024206859,0.235748,59604.0,59603.0,0.084875]
[1725024208056,0.596548,59604.0,59603.0,0.084875]
[1725024208266,0.083877,59602.0,59587.0,0.3608]
[1725024208469,0.203892,59592.0,59591.0,0.083889]
[1725024208664,0.313892,59592.0,59591.0,0.083889]
[1725024209166,0.083894,59590.0,59589.0,0.141695]
[1725024209461,0.083894,59590.0,59584.0,0.35528]
[1725024209462,0.083901,59585.0,59584.0,0.00025153]
[1725024209671,0.674701,59585.0,59584.0,0.00025153]
[1725024209855,0.758602,59585.0,59584.0,0.00025153]
[1725024210559,1.69428,59585.0,59571.0,0.06]
[1725024210760,1.69428,59585.0,59569.0,0.03008892]
[1725024210761,0.4808,59572.0,59559.0,0.3608]
[1725024211070,0.12,59560.0,59559.0,0.3608]
[1725024211363,0.23,59560.0,59559.0,0.3608]
[1725024211764,0.23,59560.0,59559.0,0.444737]
[1725024211967,0.11,59560.0,59559.0,0.444737]
[1725024212760,0.00025176,59565.0,59564.0,0.08393]
[1725024213062,0.09025176,59565.0,59564.0,0.08393]
[1725024213960,0.00025176,59565.0,59564.0,0.44473]
[1725024214274,0.3608,59577.0,59576.0,0.083913]
[1725024214460,0.4508,59577.0,59576.0,0.229193]
[1725024214667,0.09,59577.0,59576.0,0.229193]
[1725024215474,0.09,59577.0,59576.0,0.519193]
[1725024215655,0.09,59577.0,59576.0,0.603106]
[1725024216266,0.099,59577.0,59576.0,0.603106]
[1725024216569,0.107,59577.0,59576.0,0.604106]
[1725024216759,0.107,59577.0,59576.0,1.707666]
[1725024217377,0.00025176,59582.0,59581.0,0.083906]
[1725024217671,0.00025176,59582.0,59581.0,0.818612]
[1725024217866,0.00025176,59582.0,59581.0,1.322132]
[1725024219275,0.00025176,59582.0,59581.0,0.818612]
[1725024219575,0.01425176,59582.0,59581.0,0.819612]
[1725024220271,0.01525176,59582.0,59581.0,0.820612]
[1725024220475,0.01125176,59582.0,59581.0,1.323132]
[1725024221471,0.01025176,59582.0,59581.0,1.323132]
[1725024222376,0.01025176,59582.0,59581.0,0.819612]
[1725024222580,0.02025176,59582.0,59581.0,0.819612]
[1725024222765,0.02025176,59582.0,59581.0,0.964892]
[1725024223164,0.01025176,59582.0,59581.0,0.964892]
[1725024227272,0.01025176,59582.0,59581.0,1.048798]
[1725024227475,0.03025176,59582.0,59581.0,1.048798]
[1725024229677,0.125976,59603.0,59598.0,0.083882]
[1725024229868,0.11,59599.0,59598.0,0.528564]
[1725024230072,0.11,59599.0,59598.0,0.612446]
[1725024230280,0.0581,59610.0,59604.0,0.083874]
[1725024230475,0.21882265,59610.0,59609.0,0.083867]
[1725024230675,0.1881,59610.0,59609.0,0.083867]
[1725024232181,0.2021,59610.0,59609.0,0.084867]
[1725024233578,0.2031,59610.0,59609.0,0.085867]
[1725024236583,0.145,59610.0,59609.0,0.169734]
[1725024236969,0.145,59610.0,59609.0,0.314974]
[1725024238779,0.145,59610.0,59609.0,0.675774]
[1725024239675,0.145,59610.0,59609.0,0.530534]
[1725024239877,0.145,59610.0,59609.0,0.446667]
[1725024240076,0.145,59610.0,59609.0,0.591667]
[1725024241279,0.145,59610.0,59609.0,0.675534]
[1725024242279,0.145,59610.0,59609.0,0.591667]
[1725024242472,0.145,59610.0,59609.0,0.675534]
[1725024242676,0.145,59610.0,59609.0,0.591667]
[1725024242876,0.145,59610.0,59609.0,0.591627]
[1725024243185,0.145,59610.0,59609.0,0.675494]
[1725024243382,0.145,59610.0,59609.0,0.591627]
[1725024243986,0.145,59610.0,59609.0,0.675494]
[1725024247382,0.145,59610.0,59609.0,0.446667]
[1725024247593,0.228865,59610.0,59609.0,0.085867]
[1725024248485,0.31273,59610.0,59609.0,0.085867]
[1725024248683,0.083877,59602.0,59597.0,0.444683]
[1725024248884,0.267754,59602.0,59594.0,0.00124]
[1725024249085,0.083891,59592.0,59591.0,0.083891]
[1725024249290,0.083891,59592.0,59588.0,0.14496]
[1725024249291,0.554691,59592.0,59588.0,0.14496]
[1725024249590,0.554691,59592.0,59588.0,0.083896]
[1725024249591,0.083895,59589.0,59588.0,0.083896]
[1725024249792,0.193895,59589.0,59588.0,0.083896]
[1725024249978,0.11,59589.0,59588.0,0.083896]
[1725024251181,0.193895,59589.0,59588.0,0.083896]
[1725024251385,0.189895,59589.0,59588.0,0.083896]
[1725024251988,0.190895,59589.0,59588.0,0.007]
[1725024252201,0.480895,59589.0,59588.0,0.007]
[1725024252385,0.480895,59589.0,59588.0,0.013]
[1725024252585,0.190895,59589.0,59588.0,0.013]
[1725024252985,0.22134478,59589.0,59588.0,0.013]
[1725024253185,0.13744978,59589.0,59588.0,0.096896]
[1725024253691,0.107,59589.0,59588.0,0.096896]
[1725024255781,0.190895,59589.0,59588.0,0.096896]
[1725024260492,0.190895,59589.0,59588.0,0.013]
[1725024260493,0.56479,59589.0,59588.0,0.013]
[1725024260894,1.06823,59589.0,59588.0,0.013]
[1725024261101,1.66823,59589.0,59588.0,0.013]
[1725024261397,1.06823,59589.0,59588.0,0.013]
[1725024261692,1.752125,59589.0,59588.0,0.013]
[1725024263298,1.152125,59589.0,59588.0,0.013]
[1725024264186,1.752125,59589.0,59588.0,0.013]
[1725024266498,1.814125,59589.0,59588.0,0.013]
[1725024268489,1.6589462,59589.0,59588.0,0.013]
[1725024268697,1.7189462,59589.0,59588.0,0.013]
[1725024269604,1.1189462,59589.0,59588.0,0.013]
[1725024270003,0.6155062,59589.0,59588.0,0.013]
[1725024271001,1.7189462,59589.0,59588.0,0.013]
[1725024271704,0.167804,59584.0,59583.0,0.00025176]
[1725024271910,0.928604,59584.0,59583.0,0.00025176]
[1725024272098,1.495884,59584.0,59583.0,0.00025176]
[1725024273199,1.496884,59584.0,59583.0,0.02425176]
[1725024274592,1.580786,59584.0,59583.0,0.02425176]
[1725024274799,2.180786,59584.0,59583.0,0.02425176]
[1725024274993,2.180786,59584.0,59583.0,0.01325176]
[1725024275205,2.187786,59584.0,59583.0,0.01425176]
[1725024275607,1.587786,59584.0,59583.0,0.01425176]
[1725024275811,2.187786,59584.0,59583.0,0.00125176]
[1725024276107,2.195786,59584.0,59583.0,0.00225176]
[1725024276398,2.196786,59584.0,59583.0,0.00225176]
[1725024276609,2.188786,59584.0,59583.0,0.00125176]
[1725024276801,2.197786,59584.0,59583.0,0.00225176]
[1725024278612,0.083916,59574.0,59573.0,0.083917]
[1725024278913,0.193916,59574.0,59573.0,0.083917]
[1725024279798,0.193916,59574.0,59573.0,0.085917]
[1725024280005,0.11,59574.0,59573.0,0.088917]
[1725024280200,0.11,59574.0,59573.0,0.172835]
[1725024280505,0.0136,59574.0,59573.0,0.546753]
[1725024280706,0.00025176,59579.0,59578.0,0.167822]
[1725024280898,0.11025176,59579.0,59578.0,0.528622]
[1725024282002,0.11025176,59579.0,59578.0,0.444711]
[1725024282199,0.11025176,59579.0,59578.0,0.589511]
[1725024282402,0.11325176,59579.0,59578.0,0.589511]
[1725024283004,0.11625176,59579.0,59578.0,0.589511]
[1725024283798,0.11625176,59579.0,59578.0,0.444711]
[1725024284006,0.11625176,59579.0,59578.0,0.589511]
[1725024285707,0.11625176,59579.0,59578.0,1.466942]
[1725024286004,0.11625176,59579.0,59578.0,2.150853]
[1725024287519,0.11325176,59579.0,59578.0,2.150853]
[1725024287699,0.11525176,59579.0,59578.0,2.150853]
[1725024288111,0.11225176,59579.0,59578.0,2.20113107]
[1725024288304,0.01785176,59579.0,59578.0,2.20113107]
[1725024288509,0.01785176,59579.0,59578.0,2.150853]
[1725024288708,0.01785176,59579.0,59578.0,2.18036523]
[1725024289108,0.01785176,59579.0,59578.0,2.23064497]
[1725024289308,0.01785176,59579.0,59578.0,2.08584497]
[1725024289505,0.01785176,59579.0,59578.0,1.35165423]
[1725024289710,0.01785176,59579.0,59578.0,2.18036523]
[1725024289906,0.01785176,59579.0,59578.0,1.64256523]
[1725024290105,0.01785176,59579.0,59578.0,2.24256523]
[1725024290512,0.01785176,59579.0,59578.0,2.15865423]
[1725024290707,0.01785176,59579.0,59578.0,2.24256523]
[1725024290912,0.01785176,59579.0,59578.0,2.29284497]
[1725024291108,0.01785176,59579.0,59578.0,2.24256523]
[1725024292219,0.01785176,59579.0,59578.0,2.29284497]
[1725024293415,0.01785176,59579.0,59578.0,1.69284497]
[1725024293611,0.01785176,59579.0,59578.0,1.64256523]
[1725024294020,0.01785176,59579.0,59578.0,1.41385423]
[1725024294210,0.01785176,59579.0,59578.0,1.64256523]
[1725024295216,0.01785176,59579.0,59578.0,1.13904523]
[1725024297318,0.01785176,59579.0,59578.0,1.05513423]
[1725024297823,0.01785176,59579.0,59578.0,1.64256523]
[1725024299120,0.02000076,59579.0,59578.0,2.32647623]
[1725024299322,0.00025176,59584.0,59583.0,0.251709]
[1725024299511,0.00025176,59584.0,59583.0,0.902509]
[1725024300316,7.6e-07,59584.0,59583.0,2.089892]
[1725024300723,7.6e-07,59584.0,59583.0,2.235452]
[1725024300918,7.6e-07,59584.0,59583.0,1.946452]
[1725024301530,0.3608,59607.0,59583.0,1.946452]
[1725024301531,0.083868,59609.0,59583.0,1.694743]
[1725024301829,0.11,59609.0,59608.0,0.083865]
[1725024302024,0.12258988,59609.0,59608.0,0.228425]
[1725024302221,0.11,59609.0,59608.0,0.228425]
[1725024302725,0.11,59609.0,59608.0,0.673093]
[1725024302921,0.00025036,59614.0,59613.0,0.083861]
[1725024303226,0.00025036,59614.0,59613.0,0.734661]
[1725024304424,0.00625036,59614.0,59613.0,0.735661]
[1725024304618,0.00625036,59614.0,59613.0,0.76628533]
[1725024304815,0.00625036,59614.0,59613.0,0.47728533]
[1725024305018,0.06625036,59614.0,59613.0,0.591181]
[1725024305424,0.00625036,59614.0,59613.0,0.591181]
[1725024305926,0.00625036,59614.0,59613.0,0.881181]
[1725024306530,0.00625036,59614.0,59613.0,0.736661]
[1725024306833,0.00625036,59614.0,59613.0,0.881181]
[1725024307340,0.00625036,59614.0,59613.0,0.736661]
[1725024307517,0.00625036,59614.0,59613.0,0.881181]
[1725024307720,0.00625036,59614.0,59613.0,0.736661]
[1725024307929,0.00625036,59614.0,59613.0,0.881181]
[1725024308129,0.00625036,59614.0,59613.0,0.520381]
[1725024308331,0.00625036,59614.0,59613.0,0.881181]
[1725024310227,0.00625036,59614.0,59613.0,0.736661]
[1725024310428,0.04625036,59614.0,59613.0,0.881181]
[1725024311524,0.04625036,59614.0,59613.0,0.736661]
[1725024311724,0.04625036,59614.0,59613.0,0.881181]
[1725024314130,0.04625036,59614.0,59613.0,0.736661]
[1725024314330,0.04625036,59614.0,59613.0,0.881181]
[1725024314830,0.083855,59619.0,59618.0,0.083853]
[1725024315031,0.08386,59616.0,59615.0,0.083858]
[1725024315234,0.19386,59616.0,59615.0,0.228378]
[1725024315436,0.19386,59616.0,59615.0,0.083858]
[1725024315640,0.11,59616.0,59615.0,0.228338]
[1725024315938,0.11,59616.0,59615.0,0.312196]
[1725024316533,0.11,59616.0,59615.0,0.396054]
[1725024317833,0.11,59616.0,59615.0,0.397054]
[1725024318034,0.112,59616.0,59615.0,0.398054]
[1725024318543,0.11,59616.0,59615.0,0.398054]
[1725024320729,0.11,59616.0,59615.0,0.169716]
[1725024320939,0.11,59616.0,59615.0,0.314196]
[1725024321236,0.11,59616.0,59615.0,0.230338]
[1725024322540,0.193857,59616.0,59615.0,0.085858]
[1725024322744,0.257157,59616.0,59615.0,0.002]
[1725024322948,0.257157,59616.0,59615.0,0.085858]
[1725024323536,0.193857,59616.0,59615.0,0.085858]
[1725024324137,0.11,59616.0,59615.0,0.085858]
[1725024324644,0.11,59616.0,59615.0,0.169716]
[1725024330648,0.11,59616.0,59615.0,0.253574]
[1725024336453,0.11,59616.0,59615.0,0.543574]
[1725024336756,0.11,59616.0,59615.0,0.606274]
[1725024337871,0.11,59616.0,59615.0,0.690132]
[1725024338053,0.08384,59632.0,59631.0,0.083835]
[1725024338255,0.26884,59632.0,59631.0,0.373835]
[1725024338460,0.185,59632.0,59631.0,0.373835]
[1725024338957,0.185,59632.0,59631.0,0.518075]
[1725024339365,0.186,59632.0,59631.0,0.520075]
[1725024339554,0.186,59632.0,59631.0,0.375835]
[1725024339750,0.186,59632.0,59631.0,0.520075]
[1725024341159,0.269835,59632.0,59631.0,0.085835]
[1725024341960,0.269835,59632.0,59631.0,0.084835]
[1725024342153,0.269835,59632.0,59631.0,0.085835]
[1725024342569,0.35367,59632.0,59631.0,0.002]
[1725024345262,0.437505,59632.0,59631.0,0.002]
[1725024345567,0.437505,59632.0,59628.0,0.3608]